{"text_format":"3","workbook":"xlsx","n_sheets":3,"sheets":["Potenciálni zákazníci","Prognóza predaja ","Mesačná vážená prognóza"],"not_rendered":{"charts":1,"defined_names":10},"read":"whole","date_system":"1900"}

{"sheet":"Potenciálni zákazníci","index":0,"n_rows":9,"n_cols":10,"rows_kept":9,"merged":[[3,1,3,8]]}
[null,"Názov spoločnosti"]
[null,"Podrobná evidencia potenciálnych zákazníkov"]
[null,{"$f":"TODAY()","v":"2018-07-25"}]
[null,{"$f":"Názov_spoločnosti","v":"Názov spoločnosti"},{"$nulls":7},"DÔVERNÉ"]
[null,"Meno potenciálneho zákazníka","Kontaktná osoba potenciálneho zákazníka","Zdroj \npotenciálneho zákazníka","Oblasť \npotenciálneho zákazníka","Typ \npotenciálneho zákazníka","Potenciálna príležitosť","Pravdepodobnosť \npredaja","Koniec \nprognózy","Vážená \nprognóza"]
[null,"A. Datum Corporation",{"$nulls":3},"Strategický",{"v":300000,"d":"300,000.00 EUR"},{"v":0.9,"d":"90%"},"január",{"$f":"IFERROR(IF(Potenciálni_zákazníci[Pravdepodobnosť \npredaja]<>\"\",Potenciálni_zákazníci[Pravdepodobnosť \npredaja]*Potenciálni_zákazníci[Potenciálna príležitosť],\"\"),\"\")","v":{"v":270000,"d":"270,000.00 EUR"}}]
[null,"Adventure Works",{"$nulls":3},"Strategický",{"v":200000,"d":"200,000.00 EUR"},{"v":0.1,"d":"10%"},"február",{"$f":"IFERROR(IF(Potenciálni_zákazníci[Pravdepodobnosť \npredaja]<>\"\",Potenciálni_zákazníci[Pravdepodobnosť \npredaja]*Potenciálni_zákazníci[Potenciálna príležitosť],\"\"),\"\")","v":{"v":20000,"d":"20,000.00 EUR"}}]
[null,"Alpine Ski House",{"$nulls":3},"Taktický",{"v":100000,"d":"100,000.00 EUR"},{"v":0.2,"d":"20%"},"marec",{"$f":"IFERROR(IF(Potenciálni_zákazníci[Pravdepodobnosť \npredaja]<>\"\",Potenciálni_zákazníci[Pravdepodobnosť \npredaja]*Potenciálni_zákazníci[Potenciálna príležitosť],\"\"),\"\")","v":{"v":20000,"d":"20,000.00 EUR"}}]
[null,"Celková hodnota",{"$nulls":4},{"$f":"SUBTOTAL(109,Potenciálni_zákazníci[Potenciálna príležitosť])","v":{"v":600000,"d":"600,000.00 EUR"}},null,null,{"$f":"SUBTOTAL(109,Potenciálni_zákazníci[Vážená \nprognóza])","v":{"v":310000,"d":"310,000.00 EUR"}}]

{"sheet":"Prognóza predaja ","index":1,"n_rows":21,"n_cols":14,"rows_kept":21,"merged":[[3,1,3,11],[3,12,3,13]]}
[null,{"$f":"Názov_spoločnosti","v":"Názov spoločnosti"}]
[null,"Prognóza predaja"]
[null,{"$f":"DátumEvidencie","v":"2018-07-25"}]
[null,{"$f":"Názov_spoločnosti","v":"Názov spoločnosti"},{"$nulls":10},"DÔVERNÉ"]
[null,"Meno potenciálneho zákazníka","január\nprognóza","február\nprognóza","marec \nprognóza","apríl \nprognóza","máj \nprognóza","jún\nprognóza","júl\nprognóza","august \nprognóza","september \nprognóza","október \nprognóza","november \nprognóza","december \nprognóza"]
[null,{"$f":"IFERROR(IF(AND(Potenciálni_zákazníci[Meno potenciálneho zákazníka] <> \"\", ROW(Prognóza_predaja[Meno potenciálneho zákazníka])<>PoslednýZáznam),Potenciálni_zákazníci[Meno potenciálneho zákazníka], \"\"),\"\")","v":"A. Datum Corporation"},{"$f":"IFERROR(IF(Potenciálni_zákazníci[Koniec \nprognózy] <>\"\",IF(Potenciálni_zákazníci[Koniec \nprognózy] = \"január\",Potenciálni_zákazníci[Vážená \nprognóza],0),\"\"),\"\")","v":{"v":270000,"d":"270,000 EUR"}},{"$f":"IFERROR(IF(Potenciálni_zákazníci[Koniec \nprognózy] <>\"\",IF(Potenciálni_zákazníci[Koniec \nprognózy] = \"február\",Potenciálni_zákazníci[Vážená \nprognóza],0),\"\"),\"\")","v":{"v":0,"d":"0 EUR"}},{"$f":"IFERROR(IF(Potenciálni_zákazníci[Koniec \nprognózy] <>\"\",IF(Potenciálni_zákazníci[Koniec \nprognózy] = \"marec\",Potenciálni_zákazníci[Vážená \nprognóza],0),\"\"),\"\")","v":{"v":0,"d":"0 EUR"}},{"$f":"IFERROR(IF(Potenciálni_zákazníci[Koniec \nprognózy] <>\"\",IF(Potenciálni_zákazníci[Koniec \nprognózy] = \"apríl\",Potenciálni_zákazníci[Vážená \nprognóza],0),\"\"),\"\")","v":{"v":0,"d":"0 EUR"}},{"$f":"IFERROR(IF(Potenciálni_zákazníci[Koniec \nprognózy] <>\"\",IF(Potenciálni_zákazníci[Koniec \nprognózy] = \"máj\",Potenciálni_zákazníci[Vážená \nprognóza],0),\"\"),\"\")","v":{"v":0,"d":"0 EUR"}},{"$f":"IFERROR(IF(Potenciálni_zákazníci[Koniec \nprognózy] <>\"\",IF(Potenciálni_zákazníci[Koniec \nprognózy] = \"jún\",Potenciálni_zákazníci[Vážená \nprognóza],0),\"\"),\"\")","v":{"v":0,"d":"0 EUR"}},{"$f":"IFERROR(IF(Potenciálni_zákazníci[Koniec \nprognózy] <>\"\",IF(Potenciálni_zákazníci[Koniec \nprognózy] = \"júl\",Potenciálni_zákazníci[Vážená \nprognóza],0),\"\"),\"\")","v":{"v":0,"d":"0 EUR"}},{"$f":"IFERROR(IF(Potenciálni_zákazníci[Koniec \nprognózy] <>\"\",IF(Potenciálni_zákazníci[Koniec \nprognózy] = \"august\",Potenciálni_zákazníci[Vážená \nprognóza],0),\"\"),\"\")","v":{"v":0,"d":"0 EUR"}},{"$f":"IFERROR(IF(Potenciálni_zákazníci[Koniec \nprognózy] <>\"\",IF(Potenciálni_zákazníci[Koniec \nprognózy] = \"september\",Potenciálni_zákazníci[Vážená \nprognóza],0),\"\"),\"\")","v":{"v":0,"d":"0 EUR"}},{"$f":"IFERROR(IF(Potenciálni_zákazníci[Koniec \nprognózy] <>\"\",IF(Potenciálni_zákazníci[Koniec \nprognózy] = \"október\",Potenciálni_zákazníci[Vážená \nprognóza],0),\"\"),\"\")","v":{"v":0,"d":"0 EUR"}},{"$f":"IFERROR(IF(Potenciálni_zákazníci[Koniec \nprognózy] <>\"\",IF(Potenciálni_zákazníci[Koniec \nprognózy] = \"november\",Potenciálni_zákazníci[Vážená \nprognóza],0),\"\"),\"\")","v":{"v":0,"d":"0 EUR"}},{"$f":"IFERROR(IF(Potenciálni_zákazníci[Koniec \nprognózy] <>\"\",IF(Potenciálni_zákazníci[Koniec \nprognózy] = \"december\",Potenciálni_zákazníci[Vážená \nprognóza],0),\"\"),\"\")","v":{"v":0,"d":"0 EUR"}}]
[null,{"$f":"IFERROR(IF(AND(Potenciálni_zákazníci[Meno potenciálneho zákazníka] <> \"\", ROW(Prognóza_predaja[Meno potenciálneho zákazníka])<>PoslednýZáznam),Potenciálni_zákazníci[Meno potenciálneho zákazníka], \"\"),\"\")","v":"Adventure Works"},{"$f":"IFERROR(IF(Potenciálni_zákazníci[Koniec \nprognózy] <>\"\",IF(Potenciálni_zákazníci[Koniec \nprognózy] = \"január\",Potenciálni_zákazníci[Vážená \nprognóza],0),\"\"),\"\")","v":{"v":0,"d":"0 EUR"}},{"$f":"IFERROR(IF(Potenciálni_zákazníci[Koniec \nprognózy] <>\"\",IF(Potenciálni_zákazníci[Koniec \nprognózy] = \"február\",Potenciálni_zákazníci[Vážená \nprognóza],0),\"\"),\"\")","v":{"v":20000,"d":"20,000 EUR"}},{"$f":"IFERROR(IF(Potenciálni_zákazníci[Koniec \nprognózy] <>\"\",IF(Potenciálni_zákazníci[Koniec \nprognózy] = \"marec\",Potenciálni_zákazníci[Vážená \nprognóza],0),\"\"),\"\")","v":{"v":0,"d":"0 EUR"}},{"$f":"IFERROR(IF(Potenciálni_zákazníci[Koniec \nprognózy] <>\"\",IF(Potenciálni_zákazníci[Koniec \nprognózy] = \"apríl\",Potenciálni_zákazníci[Vážená \nprognóza],0),\"\"),\"\")","v":{"v":0,"d":"0 EUR"}},{"$f":"IFERROR(IF(Potenciálni_zákazníci[Koniec \nprognózy] <>\"\",IF(Potenciálni_zákazníci[Koniec \nprognózy] = \"máj\",Potenciálni_zákazníci[Vážená \nprognóza],0),\"\"),\"\")","v":{"v":0,"d":"0 EUR"}},{"$f":"IFERROR(IF(Potenciálni_zákazníci[Koniec \nprognózy] <>\"\",IF(Potenciálni_zákazníci[Koniec \nprognózy] = \"jún\",Potenciálni_zákazníci[Vážená \nprognóza],0),\"\"),\"\")","v":{"v":0,"d":"0 EUR"}},{"$f":"IFERROR(IF(Potenciálni_zákazníci[Koniec \nprognózy] <>\"\",IF(Potenciálni_zákazníci[Koniec \nprognózy] = \"júl\",Potenciálni_zákazníci[Vážená \nprognóza],0),\"\"),\"\")","v":{"v":0,"d":"0 EUR"}},{"$f":"IFERROR(IF(Potenciálni_zákazníci[Koniec \nprognózy] <>\"\",IF(Potenciálni_zákazníci[Koniec \nprognózy] = \"august\",Potenciálni_zákazníci[Vážená \nprognóza],0),\"\"),\"\")","v":{"v":0,"d":"0 EUR"}},{"$f":"IFERROR(IF(Potenciálni_zákazníci[Koniec \nprognózy] <>\"\",IF(Potenciálni_zákazníci[Koniec \nprognózy] = \"september\",Potenciálni_zákazníci[Vážená \nprognóza],0),\"\"),\"\")","v":{"v":0,"d":"0 EUR"}},{"$f":"IFERROR(IF(Potenciálni_zákazníci[Koniec \nprognózy] <>\"\",IF(Potenciálni_zákazníci[Koniec \nprognózy] = \"október\",Potenciálni_zákazníci[Vážená \nprognóza],0),\"\"),\"\")","v":{"v":0,"d":"0 EUR"}},{"$f":"IFERROR(IF(Potenciálni_zákazníci[Koniec \nprognózy] <>\"\",IF(Potenciálni_zákazníci[Koniec \nprognózy] = \"november\",Potenciálni_zákazníci[Vážená \nprognóza],0),\"\"),\"\")","v":{"v":0,"d":"0 EUR"}},{"$f":"IFERROR(IF(Potenciálni_zákazníci[Koniec \nprognózy] <>\"\",IF(Potenciálni_zákazníci[Koniec \nprognózy] = \"december\",Potenciálni_zákazníci[Vážená \nprognóza],0),\"\"),\"\")","v":{"v":0,"d":"0 EUR"}}]
[null,{"$f":"IFERROR(IF(AND(Potenciálni_zákazníci[Meno potenciálneho zákazníka] <> \"\", ROW(Prognóza_predaja[Meno potenciálneho zákazníka])<>PoslednýZáznam),Potenciálni_zákazníci[Meno potenciálneho zákazníka], \"\"),\"\")","v":"Alpine Ski House"},{"$f":"IFERROR(IF(Potenciálni_zákazníci[Koniec \nprognózy] <>\"\",IF(Potenciálni_zákazníci[Koniec \nprognózy] = \"január\",Potenciálni_zákazníci[Vážená \nprognóza],0),\"\"),\"\")","v":{"v":0,"d":"0 EUR"}},{"$f":"IFERROR(IF(Potenciálni_zákazníci[Koniec \nprognózy] <>\"\",IF(Potenciálni_zákazníci[Koniec \nprognózy] = \"február\",Potenciálni_zákazníci[Vážená \nprognóza],0),\"\"),\"\")","v":{"v":0,"d":"0 EUR"}},{"$f":"IFERROR(IF(Potenciálni_zákazníci[Koniec \nprognózy] <>\"\",IF(Potenciálni_zákazníci[Koniec \nprognózy] = \"marec\",Potenciálni_zákazníci[Vážená \nprognóza],0),\"\"),\"\")","v":{"v":20000,"d":"20,000 EUR"}},{"$f":"IFERROR(IF(Potenciálni_zákazníci[Koniec \nprognózy] <>\"\",IF(Potenciálni_zákazníci[Koniec \nprognózy] = \"apríl\",Potenciálni_zákazníci[Vážená \nprognóza],0),\"\"),\"\")","v":{"v":0,"d":"0 EUR"}},{"$f":"IFERROR(IF(Potenciálni_zákazníci[Koniec \nprognózy] <>\"\",IF(Potenciálni_zákazníci[Koniec \nprognózy] = \"máj\",Potenciálni_zákazníci[Vážená \nprognóza],0),\"\"),\"\")","v":{"v":0,"d":"0 EUR"}},{"$f":"IFERROR(IF(Potenciálni_zákazníci[Koniec \nprognózy] <>\"\",IF(Potenciálni_zákazníci[Koniec \nprognózy] = \"jún\",Potenciálni_zákazníci[Vážená \nprognóza],0),\"\"),\"\")","v":{"v":0,"d":"0 EUR"}},{"$f":"IFERROR(IF(Potenciálni_zákazníci[Koniec \nprognózy] <>\"\",IF(Potenciálni_zákazníci[Koniec \nprognózy] = \"júl\",Potenciálni_zákazníci[Vážená \nprognóza],0),\"\"),\"\")","v":{"v":0,"d":"0 EUR"}},{"$f":"IFERROR(IF(Potenciálni_zákazníci[Koniec \nprognózy] <>\"\",IF(Potenciálni_zákazníci[Koniec \nprognózy] = \"august\",Potenciálni_zákazníci[Vážená \nprognóza],0),\"\"),\"\")","v":{"v":0,"d":"0 EUR"}},{"$f":"IFERROR(IF(Potenciálni_zákazníci[Koniec \nprognózy] <>\"\",IF(Potenciálni_zákazníci[Koniec \nprognózy] = \"september\",Potenciálni_zákazníci[Vážená \nprognóza],0),\"\"),\"\")","v":{"v":0,"d":"0 EUR"}},{"$f":"IFERROR(IF(Potenciálni_zákazníci[Koniec \nprognózy] <>\"\",IF(Potenciálni_zákazníci[Koniec \nprognózy] = \"október\",Potenciálni_zákazníci[Vážená \nprognóza],0),\"\"),\"\")","v":{"v":0,"d":"0 EUR"}},{"$f":"IFERROR(IF(Potenciálni_zákazníci[Koniec \nprognózy] <>\"\",IF(Potenciálni_zákazníci[Koniec \nprognózy] = \"november\",Potenciálni_zákazníci[Vážená \nprognóza],0),\"\"),\"\")","v":{"v":0,"d":"0 EUR"}},{"$f":"IFERROR(IF(Potenciálni_zákazníci[Koniec \nprognózy] <>\"\",IF(Potenciálni_zákazníci[Koniec \nprognózy] = \"december\",Potenciálni_zákazníci[Vážená \nprognóza],0),\"\"),\"\")","v":{"v":0,"d":"0 EUR"}}]
[null,{"$f":"IFERROR(IF(AND(Potenciálni_zákazníci[Meno potenciálneho zákazníka] <> \"\", ROW(Prognóza_predaja[Meno potenciálneho zákazníka])<>PoslednýZáznam),Potenciálni_zákazníci[Meno potenciálneho zákazníka], \"\"),\"\")","v":""},{"$f":"IFERROR(IF(Potenciálni_zákazníci[Koniec \nprognózy] <>\"\",IF(Potenciálni_zákazníci[Koniec \nprognózy] = \"január\",Potenciálni_zákazníci[Vážená \nprognóza],0),\"\"),\"\")","v":""},{"$f":"IFERROR(IF(Potenciálni_zákazníci[Koniec \nprognózy] <>\"\",IF(Potenciálni_zákazníci[Koniec \nprognózy] = \"február\",Potenciálni_zákazníci[Vážená \nprognóza],0),\"\"),\"\")","v":""},{"$f":"IFERROR(IF(Potenciálni_zákazníci[Koniec \nprognózy] <>\"\",IF(Potenciálni_zákazníci[Koniec \nprognózy] = \"marec\",Potenciálni_zákazníci[Vážená \nprognóza],0),\"\"),\"\")","v":""},{"$f":"IFERROR(IF(Potenciálni_zákazníci[Koniec \nprognózy] <>\"\",IF(Potenciálni_zákazníci[Koniec \nprognózy] = \"apríl\",Potenciálni_zákazníci[Vážená \nprognóza],0),\"\"),\"\")","v":""},{"$f":"IFERROR(IF(Potenciálni_zákazníci[Koniec \nprognózy] <>\"\",IF(Potenciálni_zákazníci[Koniec \nprognózy] = \"máj\",Potenciálni_zákazníci[Vážená \nprognóza],0),\"\"),\"\")","v":""},{"$f":"IFERROR(IF(Potenciálni_zákazníci[Koniec \nprognózy] <>\"\",IF(Potenciálni_zákazníci[Koniec \nprognózy] = \"jún\",Potenciálni_zákazníci[Vážená \nprognóza],0),\"\"),\"\")","v":""},{"$f":"IFERROR(IF(Potenciálni_zákazníci[Koniec \nprognózy] <>\"\",IF(Potenciálni_zákazníci[Koniec \nprognózy] = \"júl\",Potenciálni_zákazníci[Vážená \nprognóza],0),\"\"),\"\")","v":""},{"$f":"IFERROR(IF(Potenciálni_zákazníci[Koniec \nprognózy] <>\"\",IF(Potenciálni_zákazníci[Koniec \nprognózy] = \"august\",Potenciálni_zákazníci[Vážená \nprognóza],0),\"\"),\"\")","v":""},{"$f":"IFERROR(IF(Potenciálni_zákazníci[Koniec \nprognózy] <>\"\",IF(Potenciálni_zákazníci[Koniec \nprognózy] = \"september\",Potenciálni_zákazníci[Vážená \nprognóza],0),\"\"),\"\")","v":""},{"$f":"IFERROR(IF(Potenciálni_zákazníci[Koniec \nprognózy] <>\"\",IF(Potenciálni_zákazníci[Koniec \nprognózy] = \"október\",Potenciálni_zákazníci[Vážená \nprognóza],0),\"\"),\"\")","v":""},{"$f":"IFERROR(IF(Potenciálni_zákazníci[Koniec \nprognózy] <>\"\",IF(Potenciálni_zákazníci[Koniec \nprognózy] = \"november\",Potenciálni_zákazníci[Vážená \nprognóza],0),\"\"),\"\")","v":""},{"$f":"IFERROR(IF(Potenciálni_zákazníci[Koniec \nprognózy] <>\"\",IF(Potenciálni_zákazníci[Koniec \nprognózy] = \"december\",Potenciálni_zákazníci[Vážená \nprognóza],0),\"\"),\"\")","v":""}]
[null,{"$f":"IFERROR(IF(AND(Potenciálni_zákazníci[Meno potenciálneho zákazníka] <> \"\", ROW(Prognóza_predaja[Meno potenciálneho zákazníka])<>PoslednýZáznam),Potenciálni_zákazníci[Meno potenciálneho zákazníka], \"\"),\"\")","v":""},{"$f":"IFERROR(IF(Potenciálni_zákazníci[Koniec \nprognózy] <>\"\",IF(Potenciálni_zákazníci[Koniec \nprognózy] = \"január\",Potenciálni_zákazníci[Vážená \nprognóza],0),\"\"),\"\")","v":""},{"$f":"IFERROR(IF(Potenciálni_zákazníci[Koniec \nprognózy] <>\"\",IF(Potenciálni_zákazníci[Koniec \nprognózy] = \"február\",Potenciálni_zákazníci[Vážená \nprognóza],0),\"\"),\"\")","v":""},{"$f":"IFERROR(IF(Potenciálni_zákazníci[Koniec \nprognózy] <>\"\",IF(Potenciálni_zákazníci[Koniec \nprognózy] = \"marec\",Potenciálni_zákazníci[Vážená \nprognóza],0),\"\"),\"\")","v":""},{"$f":"IFERROR(IF(Potenciálni_zákazníci[Koniec \nprognózy] <>\"\",IF(Potenciálni_zákazníci[Koniec \nprognózy] = \"apríl\",Potenciálni_zákazníci[Vážená \nprognóza],0),\"\"),\"\")","v":""},{"$f":"IFERROR(IF(Potenciálni_zákazníci[Koniec \nprognózy] <>\"\",IF(Potenciálni_zákazníci[Koniec \nprognózy] = \"máj\",Potenciálni_zákazníci[Vážená \nprognóza],0),\"\"),\"\")","v":""},{"$f":"IFERROR(IF(Potenciálni_zákazníci[Koniec \nprognózy] <>\"\",IF(Potenciálni_zákazníci[Koniec \nprognózy] = \"jún\",Potenciálni_zákazníci[Vážená \nprognóza],0),\"\"),\"\")","v":""},{"$f":"IFERROR(IF(Potenciálni_zákazníci[Koniec \nprognózy] <>\"\",IF(Potenciálni_zákazníci[Koniec \nprognózy] = \"júl\",Potenciálni_zákazníci[Vážená \nprognóza],0),\"\"),\"\")","v":""},{"$f":"IFERROR(IF(Potenciálni_zákazníci[Koniec \nprognózy] <>\"\",IF(Potenciálni_zákazníci[Koniec \nprognózy] = \"august\",Potenciálni_zákazníci[Vážená \nprognóza],0),\"\"),\"\")","v":""},{"$f":"IFERROR(IF(Potenciálni_zákazníci[Koniec \nprognózy] <>\"\",IF(Potenciálni_zákazníci[Koniec \nprognózy] = \"september\",Potenciálni_zákazníci[Vážená \nprognóza],0),\"\"),\"\")","v":""},{"$f":"IFERROR(IF(Potenciálni_zákazníci[Koniec \nprognózy] <>\"\",IF(Potenciálni_zákazníci[Koniec \nprognózy] = \"október\",Potenciálni_zákazníci[Vážená \nprognóza],0),\"\"),\"\")","v":""},{"$f":"IFERROR(IF(Potenciálni_zákazníci[Koniec \nprognózy] <>\"\",IF(Potenciálni_zákazníci[Koniec \nprognózy] = \"november\",Potenciálni_zákazníci[Vážená \nprognóza],0),\"\"),\"\")","v":""},{"$f":"IFERROR(IF(Potenciálni_zákazníci[Koniec \nprognózy] <>\"\",IF(Potenciálni_zákazníci[Koniec \nprognózy] = \"december\",Potenciálni_zákazníci[Vážená \nprognóza],0),\"\"),\"\")","v":""}]
[null,{"$f":"IFERROR(IF(AND(Potenciálni_zákazníci[Meno potenciálneho zákazníka] <> \"\", ROW(Prognóza_predaja[Meno potenciálneho zákazníka])<>PoslednýZáznam),Potenciálni_zákazníci[Meno potenciálneho zákazníka], \"\"),\"\")","v":""},{"$f":"IFERROR(IF(Potenciálni_zákazníci[Koniec \nprognózy] <>\"\",IF(Potenciálni_zákazníci[Koniec \nprognózy] = \"január\",Potenciálni_zákazníci[Vážená \nprognóza],0),\"\"),\"\")","v":""},{"$f":"IFERROR(IF(Potenciálni_zákazníci[Koniec \nprognózy] <>\"\",IF(Potenciálni_zákazníci[Koniec \nprognózy] = \"február\",Potenciálni_zákazníci[Vážená \nprognóza],0),\"\"),\"\")","v":""},{"$f":"IFERROR(IF(Potenciálni_zákazníci[Koniec \nprognózy] <>\"\",IF(Potenciálni_zákazníci[Koniec \nprognózy] = \"marec\",Potenciálni_zákazníci[Vážená \nprognóza],0),\"\"),\"\")","v":""},{"$f":"IFERROR(IF(Potenciálni_zákazníci[Koniec \nprognózy] <>\"\",IF(Potenciálni_zákazníci[Koniec \nprognózy] = \"apríl\",Potenciálni_zákazníci[Vážená \nprognóza],0),\"\"),\"\")","v":""},{"$f":"IFERROR(IF(Potenciálni_zákazníci[Koniec \nprognózy] <>\"\",IF(Potenciálni_zákazníci[Koniec \nprognózy] = \"máj\",Potenciálni_zákazníci[Vážená \nprognóza],0),\"\"),\"\")","v":""},{"$f":"IFERROR(IF(Potenciálni_zákazníci[Koniec \nprognózy] <>\"\",IF(Potenciálni_zákazníci[Koniec \nprognózy] = \"jún\",Potenciálni_zákazníci[Vážená \nprognóza],0),\"\"),\"\")","v":""},{"$f":"IFERROR(IF(Potenciálni_zákazníci[Koniec \nprognózy] <>\"\",IF(Potenciálni_zákazníci[Koniec \nprognózy] = \"júl\",Potenciálni_zákazníci[Vážená \nprognóza],0),\"\"),\"\")","v":""},{"$f":"IFERROR(IF(Potenciálni_zákazníci[Koniec \nprognózy] <>\"\",IF(Potenciálni_zákazníci[Koniec \nprognózy] = \"august\",Potenciálni_zákazníci[Vážená \nprognóza],0),\"\"),\"\")","v":""},{"$f":"IFERROR(IF(Potenciálni_zákazníci[Koniec \nprognózy] <>\"\",IF(Potenciálni_zákazníci[Koniec \nprognózy] = \"september\",Potenciálni_zákazníci[Vážená \nprognóza],0),\"\"),\"\")","v":""},{"$f":"IFERROR(IF(Potenciálni_zákazníci[Koniec \nprognózy] <>\"\",IF(Potenciálni_zákazníci[Koniec \nprognózy] = \"október\",Potenciálni_zákazníci[Vážená \nprognóza],0),\"\"),\"\")","v":""},{"$f":"IFERROR(IF(Potenciálni_zákazníci[Koniec \nprognózy] <>\"\",IF(Potenciálni_zákazníci[Koniec \nprognózy] = \"november\",Potenciálni_zákazníci[Vážená \nprognóza],0),\"\"),\"\")","v":""},{"$f":"IFERROR(IF(Potenciálni_zákazníci[Koniec \nprognózy] <>\"\",IF(Potenciálni_zákazníci[Koniec \nprognózy] = \"december\",Potenciálni_zákazníci[Vážená \nprognóza],0),\"\"),\"\")","v":""}]
[null,{"$f":"IFERROR(IF(AND(Potenciálni_zákazníci[Meno potenciálneho zákazníka] <> \"\", ROW(Prognóza_predaja[Meno potenciálneho zákazníka])<>PoslednýZáznam),Potenciálni_zákazníci[Meno potenciálneho zákazníka], \"\"),\"\")","v":""},{"$f":"IFERROR(IF(Potenciálni_zákazníci[Koniec \nprognózy] <>\"\",IF(Potenciálni_zákazníci[Koniec \nprognózy] = \"január\",Potenciálni_zákazníci[Vážená \nprognóza],0),\"\"),\"\")","v":""},{"$f":"IFERROR(IF(Potenciálni_zákazníci[Koniec \nprognózy] <>\"\",IF(Potenciálni_zákazníci[Koniec \nprognózy] = \"február\",Potenciálni_zákazníci[Vážená \nprognóza],0),\"\"),\"\")","v":""},{"$f":"IFERROR(IF(Potenciálni_zákazníci[Koniec \nprognózy] <>\"\",IF(Potenciálni_zákazníci[Koniec \nprognózy] = \"marec\",Potenciálni_zákazníci[Vážená \nprognóza],0),\"\"),\"\")","v":""},{"$f":"IFERROR(IF(Potenciálni_zákazníci[Koniec \nprognózy] <>\"\",IF(Potenciálni_zákazníci[Koniec \nprognózy] = \"apríl\",Potenciálni_zákazníci[Vážená \nprognóza],0),\"\"),\"\")","v":""},{"$f":"IFERROR(IF(Potenciálni_zákazníci[Koniec \nprognózy] <>\"\",IF(Potenciálni_zákazníci[Koniec \nprognózy] = \"máj\",Potenciálni_zákazníci[Vážená \nprognóza],0),\"\"),\"\")","v":""},{"$f":"IFERROR(IF(Potenciálni_zákazníci[Koniec \nprognózy] <>\"\",IF(Potenciálni_zákazníci[Koniec \nprognózy] = \"jún\",Potenciálni_zákazníci[Vážená \nprognóza],0),\"\"),\"\")","v":""},{"$f":"IFERROR(IF(Potenciálni_zákazníci[Koniec \nprognózy] <>\"\",IF(Potenciálni_zákazníci[Koniec \nprognózy] = \"júl\",Potenciálni_zákazníci[Vážená \nprognóza],0),\"\"),\"\")","v":""},{"$f":"IFERROR(IF(Potenciálni_zákazníci[Koniec \nprognózy] <>\"\",IF(Potenciálni_zákazníci[Koniec \nprognózy] = \"august\",Potenciálni_zákazníci[Vážená \nprognóza],0),\"\"),\"\")","v":""},{"$f":"IFERROR(IF(Potenciálni_zákazníci[Koniec \nprognózy] <>\"\",IF(Potenciálni_zákazníci[Koniec \nprognózy] = \"september\",Potenciálni_zákazníci[Vážená \nprognóza],0),\"\"),\"\")","v":""},{"$f":"IFERROR(IF(Potenciálni_zákazníci[Koniec \nprognózy] <>\"\",IF(Potenciálni_zákazníci[Koniec \nprognózy] = \"október\",Potenciálni_zákazníci[Vážená \nprognóza],0),\"\"),\"\")","v":""},{"$f":"IFERROR(IF(Potenciálni_zákazníci[Koniec \nprognózy] <>\"\",IF(Potenciálni_zákazníci[Koniec \nprognózy] = \"november\",Potenciálni_zákazníci[Vážená \nprognóza],0),\"\"),\"\")","v":""},{"$f":"IFERROR(IF(Potenciálni_zákazníci[Koniec \nprognózy] <>\"\",IF(Potenciálni_zákazníci[Koniec \nprognózy] = \"december\",Potenciálni_zákazníci[Vážená \nprognóza],0),\"\"),\"\")","v":""}]
[null,{"$f":"IFERROR(IF(AND(Potenciálni_zákazníci[Meno potenciálneho zákazníka] <> \"\", ROW(Prognóza_predaja[Meno potenciálneho zákazníka])<>PoslednýZáznam),Potenciálni_zákazníci[Meno potenciálneho zákazníka], \"\"),\"\")","v":""},{"$f":"IFERROR(IF(Potenciálni_zákazníci[Koniec \nprognózy] <>\"\",IF(Potenciálni_zákazníci[Koniec \nprognózy] = \"január\",Potenciálni_zákazníci[Vážená \nprognóza],0),\"\"),\"\")","v":""},{"$f":"IFERROR(IF(Potenciálni_zákazníci[Koniec \nprognózy] <>\"\",IF(Potenciálni_zákazníci[Koniec \nprognózy] = \"február\",Potenciálni_zákazníci[Vážená \nprognóza],0),\"\"),\"\")","v":""},{"$f":"IFERROR(IF(Potenciálni_zákazníci[Koniec \nprognózy] <>\"\",IF(Potenciálni_zákazníci[Koniec \nprognózy] = \"marec\",Potenciálni_zákazníci[Vážená \nprognóza],0),\"\"),\"\")","v":""},{"$f":"IFERROR(IF(Potenciálni_zákazníci[Koniec \nprognózy] <>\"\",IF(Potenciálni_zákazníci[Koniec \nprognózy] = \"apríl\",Potenciálni_zákazníci[Vážená \nprognóza],0),\"\"),\"\")","v":""},{"$f":"IFERROR(IF(Potenciálni_zákazníci[Koniec \nprognózy] <>\"\",IF(Potenciálni_zákazníci[Koniec \nprognózy] = \"máj\",Potenciálni_zákazníci[Vážená \nprognóza],0),\"\"),\"\")","v":""},{"$f":"IFERROR(IF(Potenciálni_zákazníci[Koniec \nprognózy] <>\"\",IF(Potenciálni_zákazníci[Koniec \nprognózy] = \"jún\",Potenciálni_zákazníci[Vážená \nprognóza],0),\"\"),\"\")","v":""},{"$f":"IFERROR(IF(Potenciálni_zákazníci[Koniec \nprognózy] <>\"\",IF(Potenciálni_zákazníci[Koniec \nprognózy] = \"júl\",Potenciálni_zákazníci[Vážená \nprognóza],0),\"\"),\"\")","v":""},{"$f":"IFERROR(IF(Potenciálni_zákazníci[Koniec \nprognózy] <>\"\",IF(Potenciálni_zákazníci[Koniec \nprognózy] = \"august\",Potenciálni_zákazníci[Vážená \nprognóza],0),\"\"),\"\")","v":""},{"$f":"IFERROR(IF(Potenciálni_zákazníci[Koniec \nprognózy] <>\"\",IF(Potenciálni_zákazníci[Koniec \nprognózy] = \"september\",Potenciálni_zákazníci[Vážená \nprognóza],0),\"\"),\"\")","v":""},{"$f":"IFERROR(IF(Potenciálni_zákazníci[Koniec \nprognózy] <>\"\",IF(Potenciálni_zákazníci[Koniec \nprognózy] = \"október\",Potenciálni_zákazníci[Vážená \nprognóza],0),\"\"),\"\")","v":""},{"$f":"IFERROR(IF(Potenciálni_zákazníci[Koniec \nprognózy] <>\"\",IF(Potenciálni_zákazníci[Koniec \nprognózy] = \"november\",Potenciálni_zákazníci[Vážená \nprognóza],0),\"\"),\"\")","v":""},{"$f":"IFERROR(IF(Potenciálni_zákazníci[Koniec \nprognózy] <>\"\",IF(Potenciálni_zákazníci[Koniec \nprognózy] = \"december\",Potenciálni_zákazníci[Vážená \nprognóza],0),\"\"),\"\")","v":""}]
[null,{"$f":"IFERROR(IF(AND(Potenciálni_zákazníci[Meno potenciálneho zákazníka] <> \"\", ROW(Prognóza_predaja[Meno potenciálneho zákazníka])<>PoslednýZáznam),Potenciálni_zákazníci[Meno potenciálneho zákazníka], \"\"),\"\")","v":""},{"$f":"IFERROR(IF(Potenciálni_zákazníci[Koniec \nprognózy] <>\"\",IF(Potenciálni_zákazníci[Koniec \nprognózy] = \"január\",Potenciálni_zákazníci[Vážená \nprognóza],0),\"\"),\"\")","v":""},{"$f":"IFERROR(IF(Potenciálni_zákazníci[Koniec \nprognózy] <>\"\",IF(Potenciálni_zákazníci[Koniec \nprognózy] = \"február\",Potenciálni_zákazníci[Vážená \nprognóza],0),\"\"),\"\")","v":""},{"$f":"IFERROR(IF(Potenciálni_zákazníci[Koniec \nprognózy] <>\"\",IF(Potenciálni_zákazníci[Koniec \nprognózy] = \"marec\",Potenciálni_zákazníci[Vážená \nprognóza],0),\"\"),\"\")","v":""},{"$f":"IFERROR(IF(Potenciálni_zákazníci[Koniec \nprognózy] <>\"\",IF(Potenciálni_zákazníci[Koniec \nprognózy] = \"apríl\",Potenciálni_zákazníci[Vážená \nprognóza],0),\"\"),\"\")","v":""},{"$f":"IFERROR(IF(Potenciálni_zákazníci[Koniec \nprognózy] <>\"\",IF(Potenciálni_zákazníci[Koniec \nprognózy] = \"máj\",Potenciálni_zákazníci[Vážená \nprognóza],0),\"\"),\"\")","v":""},{"$f":"IFERROR(IF(Potenciálni_zákazníci[Koniec \nprognózy] <>\"\",IF(Potenciálni_zákazníci[Koniec \nprognózy] = \"jún\",Potenciálni_zákazníci[Vážená \nprognóza],0),\"\"),\"\")","v":""},{"$f":"IFERROR(IF(Potenciálni_zákazníci[Koniec \nprognózy] <>\"\",IF(Potenciálni_zákazníci[Koniec \nprognózy] = \"júl\",Potenciálni_zákazníci[Vážená \nprognóza],0),\"\"),\"\")","v":""},{"$f":"IFERROR(IF(Potenciálni_zákazníci[Koniec \nprognózy] <>\"\",IF(Potenciálni_zákazníci[Koniec \nprognózy] = \"august\",Potenciálni_zákazníci[Vážená \nprognóza],0),\"\"),\"\")","v":""},{"$f":"IFERROR(IF(Potenciálni_zákazníci[Koniec \nprognózy] <>\"\",IF(Potenciálni_zákazníci[Koniec \nprognózy] = \"september\",Potenciálni_zákazníci[Vážená \nprognóza],0),\"\"),\"\")","v":""},{"$f":"IFERROR(IF(Potenciálni_zákazníci[Koniec \nprognózy] <>\"\",IF(Potenciálni_zákazníci[Koniec \nprognózy] = \"október\",Potenciálni_zákazníci[Vážená \nprognóza],0),\"\"),\"\")","v":""},{"$f":"IFERROR(IF(Potenciálni_zákazníci[Koniec \nprognózy] <>\"\",IF(Potenciálni_zákazníci[Koniec \nprognózy] = \"november\",Potenciálni_zákazníci[Vážená \nprognóza],0),\"\"),\"\")","v":""},{"$f":"IFERROR(IF(Potenciálni_zákazníci[Koniec \nprognózy] <>\"\",IF(Potenciálni_zákazníci[Koniec \nprognózy] = \"december\",Potenciálni_zákazníci[Vážená \nprognóza],0),\"\"),\"\")","v":""}]
[null,{"$f":"IFERROR(IF(AND(Potenciálni_zákazníci[Meno potenciálneho zákazníka] <> \"\", ROW(Prognóza_predaja[Meno potenciálneho zákazníka])<>PoslednýZáznam),Potenciálni_zákazníci[Meno potenciálneho zákazníka], \"\"),\"\")","v":""},{"$f":"IFERROR(IF(Potenciálni_zákazníci[Koniec \nprognózy] <>\"\",IF(Potenciálni_zákazníci[Koniec \nprognózy] = \"január\",Potenciálni_zákazníci[Vážená \nprognóza],0),\"\"),\"\")","v":""},{"$f":"IFERROR(IF(Potenciálni_zákazníci[Koniec \nprognózy] <>\"\",IF(Potenciálni_zákazníci[Koniec \nprognózy] = \"február\",Potenciálni_zákazníci[Vážená \nprognóza],0),\"\"),\"\")","v":""},{"$f":"IFERROR(IF(Potenciálni_zákazníci[Koniec \nprognózy] <>\"\",IF(Potenciálni_zákazníci[Koniec \nprognózy] = \"marec\",Potenciálni_zákazníci[Vážená \nprognóza],0),\"\"),\"\")","v":""},{"$f":"IFERROR(IF(Potenciálni_zákazníci[Koniec \nprognózy] <>\"\",IF(Potenciálni_zákazníci[Koniec \nprognózy] = \"apríl\",Potenciálni_zákazníci[Vážená \nprognóza],0),\"\"),\"\")","v":""},{"$f":"IFERROR(IF(Potenciálni_zákazníci[Koniec \nprognózy] <>\"\",IF(Potenciálni_zákazníci[Koniec \nprognózy] = \"máj\",Potenciálni_zákazníci[Vážená \nprognóza],0),\"\"),\"\")","v":""},{"$f":"IFERROR(IF(Potenciálni_zákazníci[Koniec \nprognózy] <>\"\",IF(Potenciálni_zákazníci[Koniec \nprognózy] = \"jún\",Potenciálni_zákazníci[Vážená \nprognóza],0),\"\"),\"\")","v":""},{"$f":"IFERROR(IF(Potenciálni_zákazníci[Koniec \nprognózy] <>\"\",IF(Potenciálni_zákazníci[Koniec \nprognózy] = \"júl\",Potenciálni_zákazníci[Vážená \nprognóza],0),\"\"),\"\")","v":""},{"$f":"IFERROR(IF(Potenciálni_zákazníci[Koniec \nprognózy] <>\"\",IF(Potenciálni_zákazníci[Koniec \nprognózy] = \"august\",Potenciálni_zákazníci[Vážená \nprognóza],0),\"\"),\"\")","v":""},{"$f":"IFERROR(IF(Potenciálni_zákazníci[Koniec \nprognózy] <>\"\",IF(Potenciálni_zákazníci[Koniec \nprognózy] = \"september\",Potenciálni_zákazníci[Vážená \nprognóza],0),\"\"),\"\")","v":""},{"$f":"IFERROR(IF(Potenciálni_zákazníci[Koniec \nprognózy] <>\"\",IF(Potenciálni_zákazníci[Koniec \nprognózy] = \"október\",Potenciálni_zákazníci[Vážená \nprognóza],0),\"\"),\"\")","v":""},{"$f":"IFERROR(IF(Potenciálni_zákazníci[Koniec \nprognózy] <>\"\",IF(Potenciálni_zákazníci[Koniec \nprognózy] = \"november\",Potenciálni_zákazníci[Vážená \nprognóza],0),\"\"),\"\")","v":""},{"$f":"IFERROR(IF(Potenciálni_zákazníci[Koniec \nprognózy] <>\"\",IF(Potenciálni_zákazníci[Koniec \nprognózy] = \"december\",Potenciálni_zákazníci[Vážená \nprognóza],0),\"\"),\"\")","v":""}]
[null,{"$f":"IFERROR(IF(AND(Potenciálni_zákazníci[Meno potenciálneho zákazníka] <> \"\", ROW(Prognóza_predaja[Meno potenciálneho zákazníka])<>PoslednýZáznam),Potenciálni_zákazníci[Meno potenciálneho zákazníka], \"\"),\"\")","v":""},{"$f":"IFERROR(IF(Potenciálni_zákazníci[Koniec \nprognózy] <>\"\",IF(Potenciálni_zákazníci[Koniec \nprognózy] = \"január\",Potenciálni_zákazníci[Vážená \nprognóza],0),\"\"),\"\")","v":""},{"$f":"IFERROR(IF(Potenciálni_zákazníci[Koniec \nprognózy] <>\"\",IF(Potenciálni_zákazníci[Koniec \nprognózy] = \"február\",Potenciálni_zákazníci[Vážená \nprognóza],0),\"\"),\"\")","v":""},{"$f":"IFERROR(IF(Potenciálni_zákazníci[Koniec \nprognózy] <>\"\",IF(Potenciálni_zákazníci[Koniec \nprognózy] = \"marec\",Potenciálni_zákazníci[Vážená \nprognóza],0),\"\"),\"\")","v":""},{"$f":"IFERROR(IF(Potenciálni_zákazníci[Koniec \nprognózy] <>\"\",IF(Potenciálni_zákazníci[Koniec \nprognózy] = \"apríl\",Potenciálni_zákazníci[Vážená \nprognóza],0),\"\"),\"\")","v":""},{"$f":"IFERROR(IF(Potenciálni_zákazníci[Koniec \nprognózy] <>\"\",IF(Potenciálni_zákazníci[Koniec \nprognózy] = \"máj\",Potenciálni_zákazníci[Vážená \nprognóza],0),\"\"),\"\")","v":""},{"$f":"IFERROR(IF(Potenciálni_zákazníci[Koniec \nprognózy] <>\"\",IF(Potenciálni_zákazníci[Koniec \nprognózy] = \"jún\",Potenciálni_zákazníci[Vážená \nprognóza],0),\"\"),\"\")","v":""},{"$f":"IFERROR(IF(Potenciálni_zákazníci[Koniec \nprognózy] <>\"\",IF(Potenciálni_zákazníci[Koniec \nprognózy] = \"júl\",Potenciálni_zákazníci[Vážená \nprognóza],0),\"\"),\"\")","v":""},{"$f":"IFERROR(IF(Potenciálni_zákazníci[Koniec \nprognózy] <>\"\",IF(Potenciálni_zákazníci[Koniec \nprognózy] = \"august\",Potenciálni_zákazníci[Vážená \nprognóza],0),\"\"),\"\")","v":""},{"$f":"IFERROR(IF(Potenciálni_zákazníci[Koniec \nprognózy] <>\"\",IF(Potenciálni_zákazníci[Koniec \nprognózy] = \"september\",Potenciálni_zákazníci[Vážená \nprognóza],0),\"\"),\"\")","v":""},{"$f":"IFERROR(IF(Potenciálni_zákazníci[Koniec \nprognózy] <>\"\",IF(Potenciálni_zákazníci[Koniec \nprognózy] = \"október\",Potenciálni_zákazníci[Vážená \nprognóza],0),\"\"),\"\")","v":""},{"$f":"IFERROR(IF(Potenciálni_zákazníci[Koniec \nprognózy] <>\"\",IF(Potenciálni_zákazníci[Koniec \nprognózy] = \"november\",Potenciálni_zákazníci[Vážená \nprognóza],0),\"\"),\"\")","v":""},{"$f":"IFERROR(IF(Potenciálni_zákazníci[Koniec \nprognózy] <>\"\",IF(Potenciálni_zákazníci[Koniec \nprognózy] = \"december\",Potenciálni_zákazníci[Vážená \nprognóza],0),\"\"),\"\")","v":""}]
[null,{"$f":"IFERROR(IF(AND(Potenciálni_zákazníci[Meno potenciálneho zákazníka] <> \"\", ROW(Prognóza_predaja[Meno potenciálneho zákazníka])<>PoslednýZáznam),Potenciálni_zákazníci[Meno potenciálneho zákazníka], \"\"),\"\")","v":""},{"$f":"IFERROR(IF(Potenciálni_zákazníci[Koniec \nprognózy] <>\"\",IF(Potenciálni_zákazníci[Koniec \nprognózy] = \"január\",Potenciálni_zákazníci[Vážená \nprognóza],0),\"\"),\"\")","v":""},{"$f":"IFERROR(IF(Potenciálni_zákazníci[Koniec \nprognózy] <>\"\",IF(Potenciálni_zákazníci[Koniec \nprognózy] = \"február\",Potenciálni_zákazníci[Vážená \nprognóza],0),\"\"),\"\")","v":""},{"$f":"IFERROR(IF(Potenciálni_zákazníci[Koniec \nprognózy] <>\"\",IF(Potenciálni_zákazníci[Koniec \nprognózy] = \"marec\",Potenciálni_zákazníci[Vážená \nprognóza],0),\"\"),\"\")","v":""},{"$f":"IFERROR(IF(Potenciálni_zákazníci[Koniec \nprognózy] <>\"\",IF(Potenciálni_zákazníci[Koniec \nprognózy] = \"apríl\",Potenciálni_zákazníci[Vážená \nprognóza],0),\"\"),\"\")","v":""},{"$f":"IFERROR(IF(Potenciálni_zákazníci[Koniec \nprognózy] <>\"\",IF(Potenciálni_zákazníci[Koniec \nprognózy] = \"máj\",Potenciálni_zákazníci[Vážená \nprognóza],0),\"\"),\"\")","v":""},{"$f":"IFERROR(IF(Potenciálni_zákazníci[Koniec \nprognózy] <>\"\",IF(Potenciálni_zákazníci[Koniec \nprognózy] = \"jún\",Potenciálni_zákazníci[Vážená \nprognóza],0),\"\"),\"\")","v":""},{"$f":"IFERROR(IF(Potenciálni_zákazníci[Koniec \nprognózy] <>\"\",IF(Potenciálni_zákazníci[Koniec \nprognózy] = \"júl\",Potenciálni_zákazníci[Vážená \nprognóza],0),\"\"),\"\")","v":""},{"$f":"IFERROR(IF(Potenciálni_zákazníci[Koniec \nprognózy] <>\"\",IF(Potenciálni_zákazníci[Koniec \nprognózy] = \"august\",Potenciálni_zákazníci[Vážená \nprognóza],0),\"\"),\"\")","v":""},{"$f":"IFERROR(IF(Potenciálni_zákazníci[Koniec \nprognózy] <>\"\",IF(Potenciálni_zákazníci[Koniec \nprognózy] = \"september\",Potenciálni_zákazníci[Vážená \nprognóza],0),\"\"),\"\")","v":""},{"$f":"IFERROR(IF(Potenciálni_zákazníci[Koniec \nprognózy] <>\"\",IF(Potenciálni_zákazníci[Koniec \nprognózy] = \"október\",Potenciálni_zákazníci[Vážená \nprognóza],0),\"\"),\"\")","v":""},{"$f":"IFERROR(IF(Potenciálni_zákazníci[Koniec \nprognózy] <>\"\",IF(Potenciálni_zákazníci[Koniec \nprognózy] = \"november\",Potenciálni_zákazníci[Vážená \nprognóza],0),\"\"),\"\")","v":""},{"$f":"IFERROR(IF(Potenciálni_zákazníci[Koniec \nprognózy] <>\"\",IF(Potenciálni_zákazníci[Koniec \nprognózy] = \"december\",Potenciálni_zákazníci[Vážená \nprognóza],0),\"\"),\"\")","v":""}]
[null,{"$f":"IFERROR(IF(AND(Potenciálni_zákazníci[Meno potenciálneho zákazníka] <> \"\", ROW(Prognóza_predaja[Meno potenciálneho zákazníka])<>PoslednýZáznam),Potenciálni_zákazníci[Meno potenciálneho zákazníka], \"\"),\"\")","v":""},{"$f":"IFERROR(IF(Potenciálni_zákazníci[Koniec \nprognózy] <>\"\",IF(Potenciálni_zákazníci[Koniec \nprognózy] = \"január\",Potenciálni_zákazníci[Vážená \nprognóza],0),\"\"),\"\")","v":""},{"$f":"IFERROR(IF(Potenciálni_zákazníci[Koniec \nprognózy] <>\"\",IF(Potenciálni_zákazníci[Koniec \nprognózy] = \"február\",Potenciálni_zákazníci[Vážená \nprognóza],0),\"\"),\"\")","v":""},{"$f":"IFERROR(IF(Potenciálni_zákazníci[Koniec \nprognózy] <>\"\",IF(Potenciálni_zákazníci[Koniec \nprognózy] = \"marec\",Potenciálni_zákazníci[Vážená \nprognóza],0),\"\"),\"\")","v":""},{"$f":"IFERROR(IF(Potenciálni_zákazníci[Koniec \nprognózy] <>\"\",IF(Potenciálni_zákazníci[Koniec \nprognózy] = \"apríl\",Potenciálni_zákazníci[Vážená \nprognóza],0),\"\"),\"\")","v":""},{"$f":"IFERROR(IF(Potenciálni_zákazníci[Koniec \nprognózy] <>\"\",IF(Potenciálni_zákazníci[Koniec \nprognózy] = \"máj\",Potenciálni_zákazníci[Vážená \nprognóza],0),\"\"),\"\")","v":""},{"$f":"IFERROR(IF(Potenciálni_zákazníci[Koniec \nprognózy] <>\"\",IF(Potenciálni_zákazníci[Koniec \nprognózy] = \"jún\",Potenciálni_zákazníci[Vážená \nprognóza],0),\"\"),\"\")","v":""},{"$f":"IFERROR(IF(Potenciálni_zákazníci[Koniec \nprognózy] <>\"\",IF(Potenciálni_zákazníci[Koniec \nprognózy] = \"júl\",Potenciálni_zákazníci[Vážená \nprognóza],0),\"\"),\"\")","v":""},{"$f":"IFERROR(IF(Potenciálni_zákazníci[Koniec \nprognózy] <>\"\",IF(Potenciálni_zákazníci[Koniec \nprognózy] = \"august\",Potenciálni_zákazníci[Vážená \nprognóza],0),\"\"),\"\")","v":""},{"$f":"IFERROR(IF(Potenciálni_zákazníci[Koniec \nprognózy] <>\"\",IF(Potenciálni_zákazníci[Koniec \nprognózy] = \"september\",Potenciálni_zákazníci[Vážená \nprognóza],0),\"\"),\"\")","v":""},{"$f":"IFERROR(IF(Potenciálni_zákazníci[Koniec \nprognózy] <>\"\",IF(Potenciálni_zákazníci[Koniec \nprognózy] = \"október\",Potenciálni_zákazníci[Vážená \nprognóza],0),\"\"),\"\")","v":""},{"$f":"IFERROR(IF(Potenciálni_zákazníci[Koniec \nprognózy] <>\"\",IF(Potenciálni_zákazníci[Koniec \nprognózy] = \"november\",Potenciálni_zákazníci[Vážená \nprognóza],0),\"\"),\"\")","v":""},{"$f":"IFERROR(IF(Potenciálni_zákazníci[Koniec \nprognózy] <>\"\",IF(Potenciálni_zákazníci[Koniec \nprognózy] = \"december\",Potenciálni_zákazníci[Vážená \nprognóza],0),\"\"),\"\")","v":""}]
[null,{"$f":"IFERROR(IF(AND(Potenciálni_zákazníci[Meno potenciálneho zákazníka] <> \"\", ROW(Prognóza_predaja[Meno potenciálneho zákazníka])<>PoslednýZáznam),Potenciálni_zákazníci[Meno potenciálneho zákazníka], \"\"),\"\")","v":""},{"$f":"IFERROR(IF(Potenciálni_zákazníci[Koniec \nprognózy] <>\"\",IF(Potenciálni_zákazníci[Koniec \nprognózy] = \"január\",Potenciálni_zákazníci[Vážená \nprognóza],0),\"\"),\"\")","v":""},{"$f":"IFERROR(IF(Potenciálni_zákazníci[Koniec \nprognózy] <>\"\",IF(Potenciálni_zákazníci[Koniec \nprognózy] = \"február\",Potenciálni_zákazníci[Vážená \nprognóza],0),\"\"),\"\")","v":""},{"$f":"IFERROR(IF(Potenciálni_zákazníci[Koniec \nprognózy] <>\"\",IF(Potenciálni_zákazníci[Koniec \nprognózy] = \"marec\",Potenciálni_zákazníci[Vážená \nprognóza],0),\"\"),\"\")","v":""},{"$f":"IFERROR(IF(Potenciálni_zákazníci[Koniec \nprognózy] <>\"\",IF(Potenciálni_zákazníci[Koniec \nprognózy] = \"apríl\",Potenciálni_zákazníci[Vážená \nprognóza],0),\"\"),\"\")","v":""},{"$f":"IFERROR(IF(Potenciálni_zákazníci[Koniec \nprognózy] <>\"\",IF(Potenciálni_zákazníci[Koniec \nprognózy] = \"máj\",Potenciálni_zákazníci[Vážená \nprognóza],0),\"\"),\"\")","v":""},{"$f":"IFERROR(IF(Potenciálni_zákazníci[Koniec \nprognózy] <>\"\",IF(Potenciálni_zákazníci[Koniec \nprognózy] = \"jún\",Potenciálni_zákazníci[Vážená \nprognóza],0),\"\"),\"\")","v":""},{"$f":"IFERROR(IF(Potenciálni_zákazníci[Koniec \nprognózy] <>\"\",IF(Potenciálni_zákazníci[Koniec \nprognózy] = \"júl\",Potenciálni_zákazníci[Vážená \nprognóza],0),\"\"),\"\")","v":""},{"$f":"IFERROR(IF(Potenciálni_zákazníci[Koniec \nprognózy] <>\"\",IF(Potenciálni_zákazníci[Koniec \nprognózy] = \"august\",Potenciálni_zákazníci[Vážená \nprognóza],0),\"\"),\"\")","v":""},{"$f":"IFERROR(IF(Potenciálni_zákazníci[Koniec \nprognózy] <>\"\",IF(Potenciálni_zákazníci[Koniec \nprognózy] = \"september\",Potenciálni_zákazníci[Vážená \nprognóza],0),\"\"),\"\")","v":""},{"$f":"IFERROR(IF(Potenciálni_zákazníci[Koniec \nprognózy] <>\"\",IF(Potenciálni_zákazníci[Koniec \nprognózy] = \"október\",Potenciálni_zákazníci[Vážená \nprognóza],0),\"\"),\"\")","v":""},{"$f":"IFERROR(IF(Potenciálni_zákazníci[Koniec \nprognózy] <>\"\",IF(Potenciálni_zákazníci[Koniec \nprognózy] = \"november\",Potenciálni_zákazníci[Vážená \nprognóza],0),\"\"),\"\")","v":""},{"$f":"IFERROR(IF(Potenciálni_zákazníci[Koniec \nprognózy] <>\"\",IF(Potenciálni_zákazníci[Koniec \nprognózy] = \"december\",Potenciálni_zákazníci[Vážená \nprognóza],0),\"\"),\"\")","v":""}]
[null,"Celková hodnota",{"$f":"SUBTOTAL(109,Prognóza_predaja[január\nprognóza])","v":{"v":270000,"d":"270,000 EUR"}},{"$f":"SUBTOTAL(109,Prognóza_predaja[február\nprognóza])","v":{"v":20000,"d":"20,000 EUR"}},{"$f":"SUBTOTAL(109,Prognóza_predaja[marec \nprognóza])","v":{"v":20000,"d":"20,000 EUR"}},{"$f":"SUBTOTAL(109,Prognóza_predaja[apríl \nprognóza])","v":{"v":0,"d":"0 EUR"}},{"$f":"SUBTOTAL(109,Prognóza_predaja[máj \nprognóza])","v":{"v":0,"d":"0 EUR"}},{"$f":"SUBTOTAL(109,Prognóza_predaja[jún\nprognóza])","v":{"v":0,"d":"0 EUR"}},{"$f":"SUBTOTAL(109,Prognóza_predaja[júl\nprognóza])","v":{"v":0,"d":"0 EUR"}},{"$f":"SUBTOTAL(109,Prognóza_predaja[august \nprognóza])","v":{"v":0,"d":"0 EUR"}},{"$f":"SUBTOTAL(109,Prognóza_predaja[september \nprognóza])","v":{"v":0,"d":"0 EUR"}},{"$f":"SUBTOTAL(109,Prognóza_predaja[október \nprognóza])","v":{"v":0,"d":"0 EUR"}},{"$f":"SUBTOTAL(109,Prognóza_predaja[november \nprognóza])","v":{"v":0,"d":"0 EUR"}},{"$f":"SUBTOTAL(109,Prognóza_predaja[december \nprognóza])","v":{"v":0,"d":"0 EUR"}}]
[null,"Kumulatívny súčet",{"$f":"C20","v":{"v":270000,"d":"270,000 EUR"}},{"$f":"C21+D20","v":{"v":290000,"d":"290,000 EUR"}},{"v":310000,"d":"310,000 EUR"},{"v":310000,"d":"310,000 EUR"},{"v":310000,"d":"310,000 EUR"},{"v":310000,"d":"310,000 EUR"},{"v":310000,"d":"310,000 EUR"},{"v":310000,"d":"310,000 EUR"},{"v":310000,"d":"310,000 EUR"},{"v":310000,"d":"310,000 EUR"},{"v":310000,"d":"310,000 EUR"},{"v":310000,"d":"310,000 EUR"}]

{"sheet":"Mesačná vážená prognóza","index":2,"n_rows":3,"n_cols":2,"rows_kept":3}
[null,{"$f":"Názov_spoločnosti","v":"Názov spoločnosti"}]
[null,"Mesačná vážená prognóza"]
[null," "]